[Event "Titled Tuesday Blitz January 10 Late 2023"]
[White "Nogerbek, Kazybek"]
[Black "Pham, Khoi"]
[WhiteFideId "13710427"]
[BlackFideId "1054988"]
[WhiteElo "2474"]
[BlackElo "2355"]
[Result "0-1"]
[Round "05"]
[TimeControl "180+2"]
[Date "2023.01.10"]
[WhiteClock "0:00:06"]
[BlackClock "0:00:11"]

1. d4 {[%clk 0:00:00]}  Nf6 {[%clk 0:00:00]} 2. Nf3 {[%clk 0:03:00]}  d5 {[%clk 0:02:59]} 3. c4 {[%clk 0:03:00]}  e6 {[%clk 0:02:58]} 4. Nc3 {[%clk 0:03:01]}  c6 {[%clk 0:02:56]} 5. e3 {[%clk 0:03:01]}  Nbd7 {[%clk 0:02:56]} 6. Bd3 {[%clk 0:02:58]}  dxc4 {[%clk 0:02:55]} 7. Bxc4 {[%clk 0:02:59]}  b5 {[%clk 0:02:54]} 8. Bd3 {[%clk 0:03:00]}  Bd6 {[%clk 0:02:54]} 9. Qc2 {[%clk 0:03:00]}  Bb7 {[%clk 0:02:54]} 10. a4 {[%clk 0:02:57]}  b4 {[%clk 0:02:51]} 11. Ne4 {[%clk 0:02:56]}  Nxe4 {[%clk 0:02:50]} 12. Bxe4 {[%clk 0:02:57]}  Rc8 {[%clk 0:02:50]} 13. O-O {[%clk 0:02:57]}  Nf6 {[%clk 0:02:49]} 14. Bd2 {[%clk 0:02:53]}  Nxe4 {[%clk 0:02:49]} 15. Qxe4 {[%clk 0:02:47]}  O-O {[%clk 0:02:48]} 16. Rfc1 {[%clk 0:02:48]}  a5 {[%clk 0:02:45]} 17. Rc2 {[%clk 0:02:45]}  Qb6 {[%clk 0:02:43]} 18. Ng5 {[%clk 0:02:33]}  g6 {[%clk 0:02:42]} 19. Qh4 {[%clk 0:02:30]}  h5 {[%clk 0:02:35]} 20. Ne4 {[%clk 0:02:30]}  c5 {[%clk 0:02:25]} 21. Nf6+ {[%clk 0:02:30]}  Kg7 {[%clk 0:02:11]} 22. Qg5 {[%clk 0:02:04]}  Rh8 {[%clk 0:02:09]} 23. Nd7 {[%clk 0:02:03]}  Qd8 {[%clk 0:01:56]} 24. Qxd8 {[%clk 0:02:00]}  Rhxd8 {[%clk 0:01:47]} 25. Nb6 {[%clk 0:01:58]}  Rc6 {[%clk 0:01:47]} 26. dxc5 {[%clk 0:01:51]}  Bxc5 {[%clk 0:01:44]} 27. Nc4 {[%clk 0:01:35]}  Be7 {[%clk 0:01:42]} 28. b3 {[%clk 0:01:31]}  Ba6 {[%clk 0:01:17]} 29. Be1 {[%clk 0:01:01]}  Bxc4 {[%clk 0:01:14]} 30. bxc4 {[%clk 0:00:52]}  Bf6 {[%clk 0:00:56]} 31. Rb1 {[%clk 0:00:52]}  Rd3 {[%clk 0:00:52]} 32. h3 {[%clk 0:00:51]}  Ra3 {[%clk 0:00:49]} 33. Bxb4 {[%clk 0:00:49]}  axb4 {[%clk 0:00:49]} 34. Rxb4 {[%clk 0:00:43]}  Rc3 {[%clk 0:00:42]} 35. Rd2 {[%clk 0:00:43]}  R3xc4 {[%clk 0:00:39]} 36. Rb7 {[%clk 0:00:42]}  Rc7 {[%clk 0:00:38]} 37. Rxc7 {[%clk 0:00:41]}  Rxc7 {[%clk 0:00:37]} 38. Rd3 {[%clk 0:00:34]}  Ra7 {[%clk 0:00:38]} 39. Ra3 {[%clk 0:00:33]}  Be7 {[%clk 0:00:35]} 40. Ra2 {[%clk 0:00:32]}  Kf6 {[%clk 0:00:35]} 41. Kf1 {[%clk 0:00:33]}  Ke5 {[%clk 0:00:35]} 42. Ke2 {[%clk 0:00:33]}  Kd5 {[%clk 0:00:35]} 43. Kd3 {[%clk 0:00:34]}  Kc5 {[%clk 0:00:35]} 44. g4 {[%clk 0:00:33]}  Kb4 {[%clk 0:00:34]} 45. gxh5 {[%clk 0:00:34]}  gxh5 {[%clk 0:00:31]} 46. Rc2 {[%clk 0:00:33]}  Kxa4 {[%clk 0:00:32]} 47. Ke4 {[%clk 0:00:33]}  Kb4 {[%clk 0:00:26]} 48. Rc8 {[%clk 0:00:25]}  Bd6 {[%clk 0:00:22]} 49. Rh8 {[%clk 0:00:25]}  Ra5 {[%clk 0:00:18]} 50. Rh7 {[%clk 0:00:19]}  Rf5 {[%clk 0:00:17]} 51. f4 {[%clk 0:00:20]}  Kc5 {[%clk 0:00:17]} 52. Rh8 {[%clk 0:00:20]}  Kb4 {[%clk 0:00:18]} 53. Rd8 {[%clk 0:00:15]}  Bc5 {[%clk 0:00:17]} 54. Rd7 {[%clk 0:00:15]}  Kc4 {[%clk 0:00:16]} 55. Kf3 {[%clk 0:00:15]}  Rd5 {[%clk 0:00:15]} 56. Rxf7 {[%clk 0:00:15]}  Rd3 {[%clk 0:00:14]} 57. f5 {[%clk 0:00:15]}  Rxe3+ {[%clk 0:00:15]} 58. Kg2 {[%clk 0:00:13]}  e5 {[%clk 0:00:14]} 59. Rd7 {[%clk 0:00:14]}  Re4 {[%clk 0:00:14]} 60. Rh7 {[%clk 0:00:13]}  h4 {[%clk 0:00:13]} 61. f6 {[%clk 0:00:08]}  Rf4 {[%clk 0:00:13]} 62. f7 {[%clk 0:00:04]}  Kd3 {[%clk 0:00:13]} 63. Rh5 {[%clk 0:00:04]}  Bd4 {[%clk 0:00:13]} 64. Rxh4 {[%clk 0:00:03]}  Rxf7 {[%clk 0:00:11]} 65. Rg4 {[%clk 0:00:03]}  Ke2 {[%clk 0:00:11]} 66. Re4+ {[%clk 0:00:04]}  Kd3 {[%clk 0:00:10]} 67. Re1 {[%clk 0:00:04]}  e4 {[%clk 0:00:10]} 68. h4 {[%clk 0:00:05]}  e3 {[%clk 0:00:11]} 69. Rd1+ {[%clk 0:00:05]}  Ke4 {[%clk 0:00:11]} 70. h5 {[%clk 0:00:05]}  e2 {[%clk 0:00:11]} 71. Rb1 {[%clk 0:00:06]}  Bc3 {[%clk 0:00:11]} 72. h6 {[%clk 0:00:05]}  e1=Q {[%clk 0:00:11]} 73. Rxe1+ {[%clk 0:00:06]}  Bxe1 {[%clk 0:00:10]} 74. h7 {[%clk 0:00:06]}  Rxh7 {[%clk 0:00:11]} 0-1


[Site "https://www.chess.com"]

[Event "Titled Tuesday Blitz January 10 Late 2023"]
[White "Fiorito, Francisco"]
[Black "Yuan, Qingyu"]
[WhiteFideId "180165"]
[BlackFideId "8609772"]
[WhiteElo "2305"]
[BlackElo "2373"]
[Result "0-1"]
[Round "05"]
[TimeControl "180+2"]
[Date "2023.01.10"]
[WhiteClock "0:00:54"]
[BlackClock "0:00:27"]

1. e4 {[%clk 0:00:00]}  e5 {[%clk 0:00:00]} 2. Nf3 {[%clk 0:03:00]}  Nc6 {[%clk 0:03:00]} 3. Bb5 {[%clk 0:03:00]}  Nf6 {[%clk 0:03:00]} 4. O-O {[%clk 0:03:00]}  Nxe4 {[%clk 0:03:01]} 5. Re1 {[%clk 0:02:59]}  Nd6 {[%clk 0:03:01]} 6. Nxe5 {[%clk 0:02:59]}  Be7 {[%clk 0:03:01]} 7. Bf1 {[%clk 0:02:59]}  Nxe5 {[%clk 0:03:02]} 8. Rxe5 {[%clk 0:02:58]}  O-O {[%clk 0:03:02]} 9. d4 {[%clk 0:02:58]}  Bf6 {[%clk 0:03:02]} 10. Re1 {[%clk 0:02:59]}  Re8 {[%clk 0:03:02]} 11. c3 {[%clk 0:02:59]}  Rxe1 {[%clk 0:03:02]} 12. Qxe1 {[%clk 0:02:55]}  Ne8 {[%clk 0:03:00]} 13. Bd3 {[%clk 0:02:55]}  d5 {[%clk 0:03:00]} 14. Bf4 {[%clk 0:02:51]}  g6 {[%clk 0:03:00]} 15. Nd2 {[%clk 0:02:51]}  Ng7 {[%clk 0:02:45]} 16. Nf3 {[%clk 0:02:50]}  Bf5 {[%clk 0:02:41]} 17. Bxf5 {[%clk 0:02:46]}  Nxf5 {[%clk 0:02:40]} 18. Be5 {[%clk 0:02:37]}  Be7 {[%clk 0:02:41]} 19. Qd2 {[%clk 0:02:37]}  c6 {[%clk 0:02:24]} 20. Re1 {[%clk 0:02:35]}  Qd7 {[%clk 0:02:22]} 21. g3 {[%clk 0:02:34]}  Re8 {[%clk 0:02:13]} 22. h4 {[%clk 0:02:13]}  h5 {[%clk 0:01:54]} 23. Re2 {[%clk 0:02:10]}  Bf8 {[%clk 0:01:40]} 24. Qe1 {[%clk 0:01:50]}  Bh6 {[%clk 0:01:39]} 25. Bf6 {[%clk 0:01:39]}  Rxe2 {[%clk 0:01:19]} 26. Qxe2 {[%clk 0:01:32]}  Nd6 {[%clk 0:01:14]} 27. Qe5 {[%clk 0:01:33]}  Bf8 {[%clk 0:01:09]} 28. b3 {[%clk 0:01:22]}  Ne4 {[%clk 0:00:52]} 29. Qf4 {[%clk 0:01:20]}  Qe6 {[%clk 0:00:43]} 30. Be5 {[%clk 0:01:16]}  Nxc3 {[%clk 0:00:33]} 31. Ng5 {[%clk 0:00:59]}  Ne2+ {[%clk 0:00:27]} 32. Kg2 {[%clk 0:00:58]}  Nxf4+ {[%clk 0:00:27]} 33. Bxf4 {[%clk 0:00:55]}  Qf5 {[%clk 0:00:27]} 34. g4 {[%clk 0:00:54]}  Qxf4 {[%clk 0:00:27]} 0-1


[Site "https://www.chess.com"]

[Event "Titled Tuesday Blitz January 10 Late 2023"]
[White "Goltsev, Dmitry"]
[Black "Kaplan, Avi Harrison"]
[WhiteFideId "24176710"]
[BlackFideId "30934559"]
[WhiteElo "2269"]
[BlackElo "2146"]
[Result "0-1"]
[Round "05"]
[TimeControl "180+2"]
[Date "2023.01.10"]
[WhiteClock "0:01:42"]
[BlackClock "0:00:39"]

1. e4 {[%clk 0:00:00]}  c5 {[%clk 0:00:00]} 2. Nf3 {[%clk 0:03:00]}  d6 {[%clk 0:03:00]} 3. d4 {[%clk 0:03:01]}  cxd4 {[%clk 0:03:00]} 4. Nxd4 {[%clk 0:03:01]}  Nf6 {[%clk 0:03:00]} 5. Nc3 {[%clk 0:03:02]}  a6 {[%clk 0:03:00]} 6. Be2 {[%clk 0:03:03]}  e5 {[%clk 0:03:00]} 7. Nb3 {[%clk 0:03:03]}  Be7 {[%clk 0:03:00]} 8. Be3 {[%clk 0:03:04]}  O-O {[%clk 0:03:01]} 9. Nd5 {[%clk 0:03:05]}  Nxd5 {[%clk 0:03:01]} 10. exd5 {[%clk 0:03:06]}  f5 {[%clk 0:02:58]} 11. f3 {[%clk 0:03:07]}  Nd7 {[%clk 0:02:57]} 12. c4 {[%clk 0:03:07]}  Bg5 {[%clk 0:02:51]} 13. Bf2 {[%clk 0:03:06]}  Bh4 {[%clk 0:02:18]} 14. g3 {[%clk 0:03:05]}  Bf6 {[%clk 0:02:18]} 15. O-O {[%clk 0:03:04]}  e4 {[%clk 0:02:18]} 16. Nd4 {[%clk 0:03:03]}  Nc5 {[%clk 0:02:08]} 17. b4 {[%clk 0:03:00]}  exf3 {[%clk 0:02:04]} 18. Bxf3 {[%clk 0:02:53]}  Ne4 {[%clk 0:01:49]} 19. Bxe4 {[%clk 0:02:49]}  fxe4 {[%clk 0:01:48]} 20. Be3 {[%clk 0:02:50]}  Bh3 {[%clk 0:01:48]} 21. Rf2 {[%clk 0:02:50]}  Qd7 {[%clk 0:01:44]} 22. Rc1 {[%clk 0:02:50]}  Be5 {[%clk 0:01:26]} 23. Rcc2 {[%clk 0:02:47]}  Qa4 {[%clk 0:01:25]} 24. Qh5 {[%clk 0:02:27]}  Bxd4 {[%clk 0:01:14]} 25. Bxd4 {[%clk 0:02:17]}  Qxc2 {[%clk 0:00:54]} 26. Qxh3 {[%clk 0:02:13]}  Qd1+ {[%clk 0:00:54]} 27. Kg2 {[%clk 0:01:49]}  Qxd4 {[%clk 0:00:52]} 28. Qe6+ {[%clk 0:01:47]}  Kh8 {[%clk 0:00:52]} 29. Rxf8+ {[%clk 0:01:46]}  Rxf8 {[%clk 0:00:52]} 30. Qxd6 {[%clk 0:01:45]}  Qf2+ {[%clk 0:00:51]} 31. Kh3 {[%clk 0:01:46]}  Qf1+ {[%clk 0:00:50]} 32. Kg4 {[%clk 0:01:47]}  Qf5+ {[%clk 0:00:50]} 33. Kh4 {[%clk 0:01:43]}  Qf6+ {[%clk 0:00:45]} 34. Qxf6 {[%clk 0:01:42]}  Rxf6 {[%clk 0:00:46]} 35. c5 {[%clk 0:01:42]}  e3 {[%clk 0:00:46]} 36. d6 {[%clk 0:01:42]}  e2 {[%clk 0:00:46]} 37. d7 {[%clk 0:01:41]}  Rf8 {[%clk 0:00:46]} 38. c6 {[%clk 0:01:42]}  bxc6 {[%clk 0:00:46]} 39. b5 {[%clk 0:01:42]}  axb5 {[%clk 0:00:46]} 40. a4 {[%clk 0:01:42]}  bxa4 {[%clk 0:00:45]} 41. d8=Q {[%clk 0:01:43]}  Rxd8 {[%clk 0:00:45]} 42. Kh5 {[%clk 0:01:42]}  e1=Q {[%clk 0:00:43]} 43. h4 {[%clk 0:01:42]}  Rd5+ {[%clk 0:00:43]} 44. Kg4 {[%clk 0:01:42]}  Qe2+ {[%clk 0:00:40]} 45. Kh3 {[%clk 0:01:43]}  Rd3 {[%clk 0:00:40]} 46. h5 {[%clk 0:01:43]}  Qf3 {[%clk 0:00:39]} 47. h6 {[%clk 0:01:42]}  Qxg3# {[%clk 0:00:39]} 0-1


[Site "https://www.chess.com"]

[Event "Titled Tuesday Blitz January 10 Late 2023"]
[White "Novikov, Evgenij"]
[Black "Tanenbaum, Zachary"]
[WhiteFideId "4125380"]
[BlackFideId "2060850"]
[WhiteElo "2276"]
[BlackElo "2261"]
[Result "0-1"]
[Round "05"]
[TimeControl "180+2"]
[Date "2023.01.10"]
[WhiteClock "0:00:02"]
[BlackClock "0:00:43"]

1. d4 {[%clk 0:00:00]}  d5 {[%clk 0:00:00]} 2. c4 {[%clk 0:03:00]}  dxc4 {[%clk 0:02:59]} 3. e3 {[%clk 0:02:59]}  e5 {[%clk 0:03:00]} 4. Bxc4 {[%clk 0:02:59]}  Nc6 {[%clk 0:02:59]} 5. Qb3 {[%clk 0:02:59]}  Bb4+ {[%clk 0:03:00]} 6. Nd2 {[%clk 0:02:57]}  Qe7 {[%clk 0:02:37]} 7. Nf3 {[%clk 0:02:35]}  exd4 {[%clk 0:02:32]} 8. O-O {[%clk 0:02:28]}  Na5 {[%clk 0:02:24]} 9. Bxf7+ {[%clk 0:02:27]}  Kf8 {[%clk 0:02:19]} 10. Bxg8 {[%clk 0:02:25]}  Nxb3 {[%clk 0:02:11]} 11. Bxb3 {[%clk 0:02:12]}  Be6 {[%clk 0:02:09]} 12. Bxe6 {[%clk 0:02:13]}  Qxe6 {[%clk 0:02:01]} 13. Nxd4 {[%clk 0:02:11]}  Qd7 {[%clk 0:02:02]} 14. a3 {[%clk 0:02:11]}  Bxd2 {[%clk 0:01:57]} 15. Bxd2 {[%clk 0:02:03]}  c5 {[%clk 0:01:56]} 16. Nf3 {[%clk 0:02:04]}  Re8 {[%clk 0:01:56]} 17. Rfd1 {[%clk 0:02:01]}  Qc6 {[%clk 0:01:52]} 18. Rac1 {[%clk 0:01:54]}  h6 {[%clk 0:01:49]} 19. Rxc5 {[%clk 0:01:52]}  Qa4 {[%clk 0:01:44]} 20. Rdc1 {[%clk 0:01:51]}  Kf7 {[%clk 0:01:30]} 21. Ne5+ {[%clk 0:01:41]}  Kg8 {[%clk 0:01:27]} 22. Ng6 {[%clk 0:01:36]}  Rd8 {[%clk 0:01:12]} 23. Be1 {[%clk 0:01:28]}  Rd1 {[%clk 0:01:12]} 24. Rc8+ {[%clk 0:00:38]}  Kh7 {[%clk 0:01:06]} 25. Nxh8 {[%clk 0:00:29]}  Qg4 {[%clk 0:01:05]} 26. Nf7 {[%clk 0:00:28]}  Rxe1+ {[%clk 0:01:04]} 27. Rxe1 {[%clk 0:00:22]}  Qxc8 {[%clk 0:00:59]} 28. Ne5 {[%clk 0:00:21]}  Qc2 {[%clk 0:01:00]} 29. b4 {[%clk 0:00:17]}  Qc3 {[%clk 0:00:57]} 30. Nf3 {[%clk 0:00:15]}  Qxa3 {[%clk 0:00:57]} 31. b5 {[%clk 0:00:15]}  Qb4 {[%clk 0:00:57]} 32. Ra1 {[%clk 0:00:10]}  Qxb5 {[%clk 0:00:57]} 33. Nd4 {[%clk 0:00:10]}  Qb2 {[%clk 0:00:56]} 34. Rd1 {[%clk 0:00:10]}  a5 {[%clk 0:00:55]} 35. h4 {[%clk 0:00:08]}  a4 {[%clk 0:00:54]} 36. Ne6 {[%clk 0:00:08]}  a3 {[%clk 0:00:54]} 37. Rd7 {[%clk 0:00:04]}  a2 {[%clk 0:00:52]} 38. h5 {[%clk 0:00:03]}  Qa1+ {[%clk 0:00:52]} 39. Kh2 {[%clk 0:00:01]}  Qe5+ {[%clk 0:00:48]} 40. Nf4 {[%clk 0:00:02]}  a1=Q {[%clk 0:00:48]} 41. Rxb7 {[%clk 0:00:02]}  Qe1 {[%clk 0:00:48]} 42. Rb4 {[%clk 0:00:02]}  Qxb4 {[%clk 0:00:43]} 0-1


[Site "https://www.chess.com"]

[Event "Titled Tuesday Blitz January 10 Late 2023"]
[White "Duda, Jan-Krzysztof"]
[Black "Lopez Gracia, Fernando"]
[WhiteFideId "1170546"]
[BlackFideId "2207184"]
[WhiteElo "2724"]
[BlackElo "2255"]
[Result "1-0"]
[Round "05"]
[TimeControl "180+2"]
[Date "2023.01.10"]
[WhiteClock "0:02:21"]
[BlackClock "0:01:37"]

1. b3 {[%clk 0:00:00]}  e5 {[%clk 0:00:00]} 2. Bb2 {[%clk 0:03:00]}  Nc6 {[%clk 0:02:59]} 3. e3 {[%clk 0:03:01]}  Nf6 {[%clk 0:03:00]} 4. Nf3 {[%clk 0:03:02]}  Bd6 {[%clk 0:03:00]} 5. c4 {[%clk 0:03:01]}  e4 {[%clk 0:02:58]} 6. Nd4 {[%clk 0:02:59]}  Nxd4 {[%clk 0:02:57]} 7. Bxd4 {[%clk 0:02:58]}  c6 {[%clk 0:02:57]} 8. Nc3 {[%clk 0:02:59]}  O-O {[%clk 0:02:57]} 9. Bxf6 {[%clk 0:02:54]}  Qxf6 {[%clk 0:02:54]} 10. Nxe4 {[%clk 0:02:54]}  Qe7 {[%clk 0:02:53]} 11. Nxd6 {[%clk 0:02:54]}  Qxd6 {[%clk 0:02:54]} 12. Be2 {[%clk 0:02:53]}  Qf6 {[%clk 0:02:55]} 13. O-O {[%clk 0:02:53]}  d6 {[%clk 0:02:47]} 14. Rc1 {[%clk 0:02:53]}  a5 {[%clk 0:02:48]} 15. Qc2 {[%clk 0:02:47]}  Bf5 {[%clk 0:02:44]} 16. Qc3 {[%clk 0:02:45]}  Qg6 {[%clk 0:02:42]} 17. Rfe1 {[%clk 0:02:45]}  c5 {[%clk 0:02:40]} 18. d4 {[%clk 0:02:43]}  b6 {[%clk 0:02:35]} 19. Rcd1 {[%clk 0:02:40]}  a4 {[%clk 0:02:28]} 20. b4 {[%clk 0:02:39]}  Rac8 {[%clk 0:02:07]} 21. a3 {[%clk 0:02:38]}  Be6 {[%clk 0:02:01]} 22. dxc5 {[%clk 0:02:38]}  dxc5 {[%clk 0:01:53]} 23. Rd6 {[%clk 0:02:31]}  Rfd8 {[%clk 0:01:50]} 24. Rxb6 {[%clk 0:02:29]}  cxb4 {[%clk 0:01:49]} 25. Rxb4 {[%clk 0:02:28]}  Qe4 {[%clk 0:01:49]} 26. Rxa4 {[%clk 0:02:25]}  Qc6 {[%clk 0:01:42]} 27. Rb4 {[%clk 0:02:22]}  Ra8 {[%clk 0:01:37]} 28. Bf3 {[%clk 0:02:21]} 1-0


[Site "https://www.chess.com"]

[Event "Titled Tuesday Blitz January 10 Late 2023"]
[White "Vasquez Schroeder, Rodrigo"]
[Black "Andreev, Eduard"]
[WhiteFideId "3400042"]
[BlackFideId "14103400"]
[WhiteElo "2524"]
[BlackElo "2413"]
[Result "1/2-1/2"]
[Round "05"]
[TimeControl "180+2"]
[Date "2023.01.10"]
[WhiteClock "0:01:34"]
[BlackClock "0:00:31"]

1. e4 {[%clk 0:00:00]}  c6 {[%clk 0:00:00]} 2. d4 {[%clk 0:03:00]}  d5 {[%clk 0:03:00]} 3. exd5 {[%clk 0:03:00]}  cxd5 {[%clk 0:03:01]} 4. c4 {[%clk 0:03:00]}  Nf6 {[%clk 0:03:01]} 5. Nc3 {[%clk 0:03:01]}  Nc6 {[%clk 0:03:01]} 6. Bg5 {[%clk 0:03:01]}  Ne4 {[%clk 0:02:59]} 7. cxd5 {[%clk 0:03:00]}  Nxc3 {[%clk 0:03:00]} 8. bxc3 {[%clk 0:02:59]}  Qxd5 {[%clk 0:02:52]} 9. Be3 {[%clk 0:03:00]}  e5 {[%clk 0:02:52]} 10. Nf3 {[%clk 0:02:58]}  Bg4 {[%clk 0:02:19]} 11. Be2 {[%clk 0:02:37]}  exd4 {[%clk 0:02:14]} 12. Nxd4 {[%clk 0:02:28]}  Bxe2 {[%clk 0:02:08]} 13. Qxe2 {[%clk 0:02:26]}  Qxg2 {[%clk 0:02:05]} 14. Bf4+ {[%clk 0:02:26]}  Be7 {[%clk 0:01:39]} 15. O-O-O {[%clk 0:02:11]}  Nxd4 {[%clk 0:01:32]} 16. cxd4 {[%clk 0:02:10]}  Rc8+ {[%clk 0:01:12]} 17. Kb2 {[%clk 0:02:07]}  Qc6 {[%clk 0:01:04]} 18. Rhe1 {[%clk 0:02:00]}  Qc3+ {[%clk 0:00:44]} 19. Kb1 {[%clk 0:01:36]}  Qb4+ {[%clk 0:00:38]} 20. Ka1 {[%clk 0:01:36]}  Qc3+ {[%clk 0:00:34]} 21. Kb1 {[%clk 0:01:34]}  Qb4+ {[%clk 0:00:31]} 22. Ka1 {[%clk 0:01:34]}  Qc3+ {[%clk 0:00:31]} 23. Kb1 {[%clk 0:01:34]} 1/2-1/2


[Site "https://www.chess.com"]

[Event "Titled Tuesday Blitz January 10 Late 2023"]
[White "Makridis, Dimitrios"]
[Black "Karas, Marek"]
[WhiteFideId "25864475"]
[BlackFideId "14928558"]
[WhiteElo "2356"]
[BlackElo "2227"]
[Result "1-0"]
[Round "05"]
[TimeControl "180+2"]
[Date "2023.01.10"]
[WhiteClock "0:00:42"]
[BlackClock "0:00:21"]

1. d4 {[%clk 0:00:00]}  Nf6 {[%clk 0:00:00]} 2. c4 {[%clk 0:02:55]}  e6 {[%clk 0:02:59]} 3. Nf3 {[%clk 0:02:53]}  d5 {[%clk 0:02:59]} 4. g3 {[%clk 0:02:45]}  Bb4+ {[%clk 0:02:57]} 5. Bd2 {[%clk 0:02:44]}  Be7 {[%clk 0:02:56]} 6. Bg2 {[%clk 0:02:44]}  O-O {[%clk 0:02:56]} 7. O-O {[%clk 0:02:44]}  c6 {[%clk 0:02:57]} 8. Nc3 {[%clk 0:02:45]}  Nbd7 {[%clk 0:02:57]} 9. Qc2 {[%clk 0:02:45]}  b6 {[%clk 0:02:58]} 10. b3 {[%clk 0:02:44]}  Bb7 {[%clk 0:02:58]} 11. e4 {[%clk 0:02:44]}  Rc8 {[%clk 0:02:58]} 12. e5 {[%clk 0:02:44]}  Ne8 {[%clk 0:02:58]} 13. h4 {[%clk 0:02:43]}  Nc7 {[%clk 0:02:58]} 14. Ng5 {[%clk 0:02:42]}  g6 {[%clk 0:02:52]} 15. Nf3 {[%clk 0:02:38]}  c5 {[%clk 0:02:52]} 16. Bh6 {[%clk 0:02:37]}  Re8 {[%clk 0:02:51]} 17. Rad1 {[%clk 0:02:35]}  dxc4 {[%clk 0:02:51]} 18. bxc4 {[%clk 0:02:32]}  cxd4 {[%clk 0:02:48]} 19. Nxd4 {[%clk 0:02:32]}  Bxg2 {[%clk 0:02:47]} 20. Kxg2 {[%clk 0:02:30]}  Na6 {[%clk 0:02:47]} 21. Ncb5 {[%clk 0:02:31]}  Ra8 {[%clk 0:02:34]} 22. h5 {[%clk 0:02:20]}  Qc8 {[%clk 0:02:20]} 23. hxg6 {[%clk 0:02:11]}  hxg6 {[%clk 0:02:16]} 24. Rfe1 {[%clk 0:02:11]}  Nac5 {[%clk 0:02:16]} 25. Nf3 {[%clk 0:02:01]}  a6 {[%clk 0:02:14]} 26. Nd6 {[%clk 0:01:53]}  Bxd6 {[%clk 0:02:04]} 27. exd6 {[%clk 0:01:53]}  Qd8 {[%clk 0:02:04]} 28. Rh1 {[%clk 0:01:54]}  Qf6 {[%clk 0:01:53]} 29. Rh4 {[%clk 0:01:53]}  e5 {[%clk 0:01:52]} 30. Bg5 {[%clk 0:01:43]}  Qg7 {[%clk 0:01:40]} 31. Rdh1 {[%clk 0:01:41]}  Ne6 {[%clk 0:01:39]} 32. Qe4 {[%clk 0:01:39]}  Rac8 {[%clk 0:01:31]} 33. Qb7 {[%clk 0:01:29]}  Nec5 {[%clk 0:01:18]} 34. Qd5 {[%clk 0:01:18]}  Ne6 {[%clk 0:01:16]} 35. Be3 {[%clk 0:01:18]}  Rb8 {[%clk 0:00:57]} 36. Rh8+ {[%clk 0:00:51]}  Qxh8 {[%clk 0:00:40]} 37. Rxh8+ {[%clk 0:00:49]}  Kxh8 {[%clk 0:00:40]} 38. Nxe5 {[%clk 0:00:50]}  Nxe5 {[%clk 0:00:40]} 39. Qxe5+ {[%clk 0:00:50]}  Kg8 {[%clk 0:00:34]} 40. Bc1 {[%clk 0:00:51]}  Rbd8 {[%clk 0:00:35]} 41. Bb2 {[%clk 0:00:50]}  Kh7 {[%clk 0:00:29]} 42. Qf6 {[%clk 0:00:49]}  g5 {[%clk 0:00:29]} 43. Qxf7+ {[%clk 0:00:43]}  Kh6 {[%clk 0:00:21]} 44. d7 {[%clk 0:00:42]} 1-0


[Site "https://www.chess.com"]

[Event "Titled Tuesday Blitz January 10 Late 2023"]
[White "Tan, Zhongyi"]
[Black "Lopez Mulet, Inigo"]
[WhiteFideId "8603642"]
[BlackFideId "22235620"]
[WhiteElo "2517"]
[BlackElo "2403"]
[Result "0-1"]
[Round "05"]
[TimeControl "180+2"]
[Date "2023.01.10"]
[WhiteClock "0:00:09"]
[BlackClock "0:01:25"]

1. d4 {[%clk 0:00:00]}  Nf6 {[%clk 0:00:00]} 2. Bf4 {[%clk 0:03:00]}  b6 {[%clk 0:02:57]} 3. e3 {[%clk 0:02:55]}  Bb7 {[%clk 0:02:54]} 4. Nf3 {[%clk 0:02:49]}  g6 {[%clk 0:02:54]} 5. Bd3 {[%clk 0:02:49]}  Bg7 {[%clk 0:02:53]} 6. h3 {[%clk 0:02:48]}  O-O {[%clk 0:02:54]} 7. O-O {[%clk 0:02:47]}  c5 {[%clk 0:02:53]} 8. c4 {[%clk 0:02:46]}  d6 {[%clk 0:02:53]} 9. Nc3 {[%clk 0:02:45]}  Nbd7 {[%clk 0:02:54]} 10. d5 {[%clk 0:02:45]}  a6 {[%clk 0:02:52]} 11. a4 {[%clk 0:02:44]}  Ne8 {[%clk 0:02:48]} 12. Qc2 {[%clk 0:02:43]}  e5 {[%clk 0:02:41]} 13. Bh2 {[%clk 0:02:40]}  f5 {[%clk 0:02:40]} 14. Nd2 {[%clk 0:02:32]}  Qh4 {[%clk 0:02:39]} 15. a5 {[%clk 0:02:30]}  Nef6 {[%clk 0:02:36]} 16. axb6 {[%clk 0:02:20]}  Nxb6 {[%clk 0:02:23]} 17. e4 {[%clk 0:02:18]}  f4 {[%clk 0:02:24]} 18. Rfb1 {[%clk 0:02:12]}  Bc8 {[%clk 0:02:19]} 19. Bf1 {[%clk 0:01:58]}  g5 {[%clk 0:02:18]} 20. f3 {[%clk 0:01:51]}  h5 {[%clk 0:02:16]} 21. b4 {[%clk 0:01:49]}  Nbd7 {[%clk 0:02:16]} 22. Na4 {[%clk 0:01:26]}  g4 {[%clk 0:02:13]} 23. bxc5 {[%clk 0:01:10]}  dxc5 {[%clk 0:02:11]} 24. fxg4 {[%clk 0:01:08]}  hxg4 {[%clk 0:02:07]} 25. hxg4 {[%clk 0:01:00]}  Nxg4 {[%clk 0:02:07]} 26. Nf3 {[%clk 0:01:00]}  Qh5 {[%clk 0:02:02]} 27. Ra3 {[%clk 0:01:00]}  Rf6 {[%clk 0:02:00]} 28. g3 {[%clk 0:00:46]}  Ne3 {[%clk 0:01:55]} 29. Qf2 {[%clk 0:00:19]}  fxg3 {[%clk 0:01:45]} 30. Qxe3 {[%clk 0:00:16]}  Rxf3 {[%clk 0:01:35]} 31. Bxg3 {[%clk 0:00:16]}  Rxe3 {[%clk 0:01:36]} 32. Rxe3 {[%clk 0:00:10]}  Nf6 {[%clk 0:01:35]} 33. Be2 {[%clk 0:00:11]}  Qh6 {[%clk 0:01:31]} 34. Reb3 {[%clk 0:00:10]}  Nxe4 {[%clk 0:01:28]} 35. Rb8 {[%clk 0:00:09]}  Rxb8 {[%clk 0:01:25]} 36. Rxb8 {[%clk 0:00:09]}  Qe3+ {[%clk 0:01:25]} 0-1


[Site "https://www.chess.com"]